[Event "Turkish Second League 2019"]
[Site "Konya"]
[Date "2019.07.23"]
[Round "2"]
[White "Buker, Muhittin"]
[Black "Ozates, Tuna"]
[Result "1-0"]
[ECO "A57"]
[WhiteElo "2016"]
[BlackElo "2218"]
[Annotator "ChessBase"]
[PlyCount "153"]
[EventDate "2019.07.22"]
[EventType "team-tourn"]
[EventCountry "TUR"]
[SourceTitle "playchess.com"]
[Source "ChessBase"]
[SourceQuality "1"]
[TimeControl "5400+30"]

1. d4 {[%emt 0:00:30]} Nf6 {[%emt 0:00:30]} 2. c4 {[%emt 0:00:00]} c5 {[%emt 0:00:00]} 3. d5 {[%emt 0:01:00]} b5 {[%emt 0:00:00]} 4. cxb5 {[%emt 0:00:30]} a6 {[%emt 0:00:00]} 5. b6 {[%emt 0:00:30]} g6 {[%emt 0:00:00]} 6. Nc3 {[%emt 0:00:00]} Qxb6 {[%emt 0:00:30]} 7. e4 {[%emt 0:00:00]} d6 {[%emt 0:00:30]} 8. Nf3 {[%emt 0:01:30]} Bg7 {[%emt 0:00:00]} 9. Bd3 {[%emt 0:00:30]} O-O {[%emt 0:01:00]} 10. h3 {[%emt 0:00:30]} e6 {[%emt 0:11:30]} 11. O-O {[%emt 0:00:30]} exd5 {[%emt 0:00:30]} 12. exd5 {[%emt 0:02:30]} Bb7 {[%emt 0:00:30]} 13. Bc4 {[%emt 0:00:30]} Nbd7 {[%emt 0:03:30]} 14. Qd3 {[%emt 0:02:30]} Rfe8 {[%emt 0:05:30]} 15. Bf4 {[%emt 0:03:30]} Qc7 {[%emt 0:35:30]} 16. Rfe1 {[%emt 0:03:30]} Nb6 {[%emt 0:02:30]} 17. Nd2 {[%emt 0:01:30]} Nfd7 {[%emt 0:00:00]} 18. Rxe8+ {[%emt 0:01:30]} Rxe8 {[%emt 0:00:00]} 19. Bxa6 {[%emt 0:02:30]} Ne5 {[%emt 0:22:24]} 20. Bxe5 {[%emt 0:00:30]} Bxe5 {[%emt 0:00:30]} 21. Bb5 {[%emt 0:06:30]} Ra8 {[%emt 0:03:10]} 22. Nc4 {[%emt 0:00:30]} Nxc4 {[%emt 0:00:43]} 23. Qxc4 {[%emt 0:01:30]} Qe7 {[%emt 0:02:58]} 24. a4 {[%emt 0:00:30]} Qg5 {[%emt 0:01:57]} 25. Rd1 {[%emt 0:10:30]} Bd4 {[%emt 0:01:35]} 26. Bc6 {[%emt 0:02:30]} Qf4 {[%emt 0:00:45]} 27. Qe2 {[%emt 0:03:30]} Ba6 {[%emt 0:01:52]} 28. Qe1 {[%emt 0:01:30]} Rb8 {[%emt 0:00:12]} 29. Nb5 {[%emt 0:04:30]} Bxb2 {[%emt 0:01:43]} 30. Qa5 {[%emt 0:00:30]} Bxb5 {[%emt 0:00:38]} 31. axb5 {[%emt 0:00:30]} Bd4 {[%emt 0:00:16]} 32. Rf1 {[%emt 0:00:30]} c4 {[%emt 0:00:15]} 33. Qc7 {[%emt 0:00:30]} Rb6 {[%emt 0:00:32]} 34. Qc8+ {[%emt 0:00:30]} Kg7 {[%emt 0:00:05]} 35. Qg4 {[%emt 0:00:30]} Qf6 {[%emt 0:00:43]} 36. Qf3 {[%emt 0:03:30]} Qg5 {[%emt 0:03:23]} 37. Rd1 {[%emt 0:00:30]} c3 {[%emt 0:00:32]} 38. Qd3 {[%emt 0:04:30]} Be5 {[%emt 0:00:45]} 39. Qe3 {[%emt 0:00:30]} c2 {[%emt 0:00:32]} 40. Rc1 {[%emt 0:00:30]} Bf4 {[%emt 0:01:27]} 41. Qc3+ {[%emt 0:00:00]} Be5 {[%emt 0:00:10]} 42. Qxc2 {[%emt 0:00:00]} Qf4 {[%emt 0:00:00]} 43. g3 {[%emt 0:00:30]} Qf6 {[%emt 0:00:00]} 44. Kg2 {[%emt 0:00:30]} h5 {[%emt 0:00:16]} 45. Qe4 {[%emt 0:00:30]} Rb8 {[%emt 0:00:23]} 46. Rd1 {[%emt 0:00:30]} Qd8 {[%emt 0:00:24]} 47. h4 {[%emt 0:00:30]} Qa5 {[%emt 0:00:25]} 48. Qe3 {[%emt 0:00:30]} Qd8 {[%emt 0:01:44]} 49. Rd3 {[%emt 0:00:30]} Qa5 {[%emt 0:00:41]} 50. Ra3 {[%emt 0:00:30]} Qb4 {[%emt 0:00:04]} 51. Ra7 {[%emt 0:02:30]} Qb2 {[%emt 0:01:10]} 52. Rxf7+ {[%emt 0:01:30]} Kxf7 {[%emt 0:00:30]} 53. Qa7+ {[%emt 0:00:30]} Kf6 {[%emt 0:00:28]} 54. Qxb8 {[%emt 0:00:30]} Kg7 {[%emt 0:00:00]} 55. Qc7+ {[%emt 0:00:30]} Kh6 {[%emt 0:00:14]} 56. Qf7 {[%emt 0:00:30]} Qb1 {[%emt 0:00:43]} 57. Be8 {[%emt 0:01:30]} Qe4+ {[%emt 0:00:28]} 58. Qf3 {[%emt 0:00:30]} Qxf3+ {[%emt 0:01:02]} 59. Kxf3 {[%emt 0:00:30]} Bd4 {[%emt 0:00:30]} 60. Ke2 {[%emt 0:00:30]} Kg7 {[%emt 0:00:30]} 61. f4 {[%emt 0:00:30]} Kf6 {[%emt 0:00:30]} 62. Kf3 {[%emt 0:00:00]} Bc5 {[%emt 0:00:49]} 63. g4 {[%emt 0:00:00]} hxg4+ {[%emt 0:00:24]} 64. Kxg4 {[%emt 0:00:00]} Bd4 {[%emt 0:00:46]} 65. Bd7 {[%emt 0:00:00]} Bc5 {[%emt 0:01:01]} 66. f5 {[%emt 0:00:00]} gxf5+ {[%emt 0:00:28]} 67. Bxf5 {[%emt 0:00:00]} Bb6 {[%emt 0:00:00]} 68. Kf4 {[%emt 0:01:30]} Kg7 {[%emt 0:00:43]} 69. h5 {[%emt 0:00:00]} Bc5 {[%emt 0:00:22]} 70. Bd3 {[%emt 0:00:00]} Bd4 {[%emt 0:00:41]} 71. Kf5 {[%emt 0:00:30]} Kf7 {[%emt 0:00:31]} 72. h6 {[%emt 0:00:30]} Ke7 {[%emt 0:00:30]} 73. h7 {[%emt 0:00:00]} Kd7 {[%emt 0:00:09]} 74. b6 {[%emt 0:00:00]} Kc8 {[%emt 0:00:30]} 75. Ba6+ {[%emt 0:00:30]} Kb8 {[%emt 0:00:01]} 76. Ke6 {[%emt 0:00:30]} Be5 {[%emt 0:00:13]} 77. Kf7 {[%emt 0:00:00]} 1-0

[Event "Turkish Second League 2019"]
[Site "Konya"]
[Date "2019.07.23"]
[Round "2"]
[White "Altunbay, Onder"]
[Black "Sahutoglu, Mehmet Ibrahim"]
[Result "1/2-1/2"]
[ECO "A47"]
[WhiteElo "1996"]
[BlackElo "1898"]
[Annotator "NA"]
[PlyCount "105"]
[EventDate "2019.07.22"]
[EventType "team-tourn"]
[EventCountry "TUR"]
[SourceTitle "playchess.com"]
[Source "ChessBase"]
[SourceQuality "1"]
[TimeControl "5400+30"]

1. d4 {[%emt 0:00:30]} c5 {[%emt 0:00:30]} 2. c3 {[%emt 0:00:00]} e6 {[%emt 0:00:00]} 3. Nf3 {[%emt 0:02:00]} Nf6 {[%emt 0:00:00]} 4. Bf4 {[%emt 0:00:00]} b6 {[%emt 0:01:30]} 5. e3 {[%emt 0:03:00]} Bb7 {[%emt 0:00:00]} 6. Nbd2 {[%emt 0:00:30]} Be7 {[%emt 0:00:00]} 7. h3 {[%emt 0:00:30]} O-O {[%emt 0:00:30]} 8. Bd3 {[%emt 0:01:30]} d6 {[%emt 0:03:30]} 9. O-O {[%emt 0:07:30]} Nbd7 {[%emt 0:02:30]} 10. Qe2 {[%emt 0:04:30]} Qc7 {[%emt 0:01:30] A47: 1 d4 Nf6 2 Nf3 b6: Torre, London and Colle Systems} (10... Re8 11. Bh2 Bf8 12. e4 e5 13. dxe5 Nxe5 14. Nxe5 dxe5 15. Nc4 b5 16. Nxe5 c4 17. Bc2 Bd6 18. Rad1 {1-0 (47) Anisimov,P (2533)-Piorun,K (2634) St Petersburg 2018}) 11. Bh2 {[%emt 0:09:30]} Rfe8 {[%emt 0:01:30]} 12. e4 {[%emt 0:02:30]} e5 {[%emt 0:01:30]} 13. dxe5 {[%emt 0:09:30]} dxe5 {[%emt 0:01:30]} 14. Nc4 {[%emt 0:06:30]} Bf8 {[%emt 0:04:30]} 15. a4 {[%emt 0:00:30]} a6 $146 {[%emt 0:03:30]} ({Predecessor:} 15... g6 16. Qc2 Bh6 17. Rfe1 Nh5 18. Rad1 {½-½ (33) Moon,B (2324)-Ludwig,J (2396) Charlotte 2017}) 16. b3 {[%emt 0:03:30]} Rac8 {[%emt 0:10:30]} 17. Ncd2 {[%emt 0:03:30]} Ra8 {[%emt 0:00:30]} 18. Nc4 {[%emt 0:03:30]} Bc6 {[%emt 0:14:30]} 19. Rfe1 {[%emt 0:05:30]} g6 {[%emt 0:16:30]} 20. g4 {[%emt 0:07:30]} Re6 {[%emt 0:06:30]} 21. Nfd2 {[%emt 0:07:30]} Ree8 {[%emt 0:05:30]} 22. f3 {[%emt 0:03:07]} b5 {[%emt 0:04:30]} 23. axb5 {[%emt 0:02:21]} axb5 {[%emt 0:00:00]} 24. Ne3 {[%emt 0:00:57]} Qb6 {[%emt 0:01:00]} 25. Kg2 {[%emt 0:00:22]} Ra5 {[%emt 0:01:58]} 26. c4 {[%emt 0:02:36]} b4 {[%emt 0:03:07]} 27. Nd5 {[%emt 0:00:58]} Qa7 {[%emt 0:00:00]} 28. Rxa5 {[%emt 0:03:50]} Qxa5 {[%emt 0:00:12]} 29. Qd1 {[%emt 0:00:30]} Bd6 {[%emt 0:05:50]} 30. Qa1 {[%emt 0:03:30]} Qxa1 {[%emt 0:02:02]} 31. Rxa1 {[%emt 0:00:30]} Ra8 {[%emt 0:00:00]} 32. Rxa8+ {[%emt 0:00:06]} Bxa8 {[%emt 0:00:00]} 33. Nxf6+ {[%emt 0:01:57]} Nxf6 {[%emt 0:00:38]} 34. Nf1 {[%emt 0:00:55]} Nd7 {[%emt 0:01:12]} 35. Ne3 {[%emt 0:00:32]} f6 {[%emt 0:02:37]} 36. Nd5 {[%emt 0:01:16]} Kf7 {[%emt 0:00:07]} 37. Kf2 {[%emt 0:00:33]} Nf8 {[%emt 0:00:47]} 38. Ke1 {[%emt 0:01:47]} Ne6 {[%emt 0:00:35]} 39. Be2 {[%emt 0:00:58]} Nd4 {[%emt 0:02:38]} 40. Bd1 {[%emt 0:00:16]} Bxd5 {[%emt 0:01:47]} 41. exd5 {[%emt 0:00:17]} f5 {[%emt 0:00:32]} 42. Bg3 {[%emt 0:01:47]} Kf6 {[%emt 0:01:37]} 43. Bh4+ {[%emt 0:00:50]} g5 {[%emt 0:00:06]} 44. Bg3 {[%emt 0:00:29]} Ke7 {[%emt 0:02:16]} 45. Bf2 {[%emt 0:01:14]} Kf6 {[%emt 0:00:47]} 46. Bg3 {[%emt 0:01:00]} Kg6 {[%emt 0:01:17]} 47. Bh2 {[%emt 0:00:40]} h5 {[%emt 0:00:14]} 48. Bg3 {[%emt 0:00:23]} hxg4 {[%emt 0:00:51]} 49. hxg4 {[%emt 0:00:06]} Kf6 {[%emt 0:00:04]} 50. Kd2 {[%emt 0:01:31]} Ke7 {[%emt 0:00:12]} 51. Bh2 {[%emt 0:00:07]} fxg4 {[%emt 0:01:39]} 52. fxg4 {[%emt 0:00:07]} e4 $15 {[%emt 0:00:00]} 53. Ke3 {[%emt 0:00:00]} 1/2-1/2

[Event "Turkish Second League 2019"]
[Site "Konya"]
[Date "2019.07.23"]
[Round "2"]
[White "Donmez, Taha Mert"]
[Black "Ilkimen, Mehmet Emre"]
[Result "1/2-1/2"]
[ECO "A21"]
[WhiteElo "1961"]
[BlackElo "1863"]
[Annotator "NA"]
[PlyCount "79"]
[EventDate "2019.07.22"]
[EventType "team-tourn"]
[EventCountry "TUR"]
[SourceTitle "playchess.com"]
[Source "ChessBase"]
[SourceQuality "1"]
[TimeControl "5400+30"]

1. c4 {[%emt 0:00:30]} e5 {[%emt 0:00:30]} 2. Nc3 {[%emt 0:00:00]} Nc6 {[%emt 0:01:30]} 3. g3 {[%emt 0:00:00]} f5 {[%emt 0:00:30]} 4. Bg2 {[%emt 0:00:00]} Nf6 {[%emt 0:01:30]} 5. e3 {[%emt 0:00:00]} d6 {[%emt 0:04:30]} 6. Nge2 {[%emt 0:00:30]} Be7 {[%emt 0:00:30]} 7. O-O {[%emt 0:00:30]} O-O {[%emt 0:01:30]} 8. b3 {[%emt 0:04:30]} Qe8 {[%emt 0:00:30]} 9. d4 {[%emt 0:02:30]} Qh5 {[%emt 0:04:30] A21: English Opening: 1...e5 2 Nc3} (9... Bd7 10. Bb2 a6 11. Qd2 Qh5 12. Nd5 Bd8 13. Rad1 e4 14. Nef4 Qh6 15. Nxf6+ Qxf6 16. f3 exf3 17. Bxf3 {½-½ (31) Fassaert,D (1923)-Hamperl,F (2062) Vale 2017}) 10. Nd5 $146 {[%emt 0:06:30]} ({Predecessor:} 10. dxe5 dxe5 11. Nd5 Nxd5 12. Bxd5+ Kh8 13. Bb2 f4 14. exf4 Bg4 15. f3 Bh3 16. Re1 exf4 17. Bxc6 {1-0 (32) Pogadl,J (1632)-Kardis,B (1853) Liptovsky Mikulas 2018}) 10... Bd8 {[%emt 0:01:30]} 11. dxe5 {[%emt 0:01:30]} Nxe5 {[%emt 0:06:30]} 12. Nef4 {[%emt 0:01:30]} Qxd1 {[%emt 0:00:30]} 13. Rxd1 {[%emt 0:00:00]} g5 {[%emt 0:13:30]} 14. Nd3 {[%emt 0:02:00]} Nxd5 {[%emt 0:10:30]} 15. Bxd5+ {[%emt 0:00:30]} Kg7 {[%emt 0:00:30]} 16. Nxe5 {[%emt 0:10:30]} dxe5 {[%emt 0:02:30]} 17. f4 {[%emt 0:08:30]} gxf4 {[%emt 0:09:30]} 18. gxf4 {[%emt 0:01:30]} c6 {[%emt 0:17:30]} 19. Bf3 {[%emt 0:04:30]} e4 $11 {[%emt 0:02:11]} 20. Bb2+ {[%emt 0:01:30]} Bf6 {[%emt 0:01:02]} 21. Bxf6+ {[%emt 0:00:00]} Kxf6 {[%emt 0:01:26]} 22. Bh5 {[%emt 0:03:00]} Be6 {[%emt 0:01:10]} 23. Rd2 {[%emt 0:04:30]} Rfd8 {[%emt 0:01:10]} 24. Rad1 {[%emt 0:00:00]} Rxd2 {[%emt 0:00:26]} 25. Rxd2 {[%emt 0:00:00]} c5 {[%emt 0:00:36]} 26. Kf2 {[%emt 0:00:30]} Ke7 {[%emt 0:00:41]} 27. Rd1 {[%emt 0:01:30]} a5 {[%emt 0:01:51]} 28. a4 {[%emt 0:00:30]} Rg8 {[%emt 0:05:48]} 29. Rd2 {[%emt 0:07:30]} Rg7 {[%emt 0:01:06]} 30. Kf1 {[%emt 0:04:30]} Rg8 {[%emt 0:00:26]} 31. Rd1 {[%emt 0:09:30]} Rg7 {[%emt 0:01:06]} 32. Rd2 {[%emt 0:09:04]} Rg8 {[%emt 0:00:11]} 33. Rg2 {[%emt 0:07:05]} Rxg2 {[%emt 0:01:16]} 34. Kxg2 {[%emt 0:00:30]} Bf7 {[%emt 0:00:30]} 35. Be2 {[%emt 0:00:30]} Kf6 {[%emt 0:00:30]} 36. Kg3 {[%emt 0:00:01]} Kg7 {[%emt 0:00:13]} 37. Kh4 {[%emt 0:00:53]} Kh6 {[%emt 0:00:35]} 38. Bd1 {[%emt 0:00:30]} Be8 {[%emt 0:00:13]} 39. Be2 {[%emt 0:00:00]} Bf7 {[%emt 0:00:00]} 40. Bd1 {[%emt 0:01:28]} 1/2-1/2

[Event "Turkish Second League 2019"]
[Site "Konya"]
[Date "2019.07.23"]
[Round "2"]
[White "Cilek, Bora"]
[Black "Ozkurt, Kutay"]
[Result "1/2-1/2"]
[ECO "B31"]
[WhiteElo "1948"]
[BlackElo "1824"]
[Annotator "NA"]
[PlyCount "159"]
[EventDate "2019.07.22"]
[EventType "team-tourn"]
[EventCountry "TUR"]
[SourceTitle "playchess.com"]
[Source "ChessBase"]
[SourceQuality "1"]
[TimeControl "5400+30"]

1. e4 {[%emt 0:01:30]} c5 {[%emt 0:00:30]} 2. Nf3 {[%emt 0:01:30]} Nc6 {[%emt 0:00:00]} 3. Bb5 {[%emt 0:00:00]} g6 {[%emt 0:00:00]} 4. Bxc6 {[%emt 0:00:00]} bxc6 {[%emt 0:00:30]} 5. O-O {[%emt 0:00:30]} Bg7 {[%emt 0:00:00]} 6. Re1 {[%emt 0:00:00]} Nf6 {[%emt 0:00:00]} 7. e5 {[%emt 0:00:00]} Nd5 {[%emt 0:00:30]} 8. c4 {[%emt 0:00:00]} Nc7 {[%emt 0:00:30]} 9. d4 {[%emt 0:00:00]} cxd4 {[%emt 0:00:30]} 10. Qxd4 {[%emt 0:00:30]} O-O {[%emt 0:00:30]} 11. Qh4 {[%emt 0:00:30]} Ne6 {[%emt 0:03:30]} 12. Bh6 {[%emt 0:01:30] B31: Sicilian: 2...Nc6 3 Bb5 g6} Bb7 {[%emt 0:24:30]} 13. Nc3 {[%emt 0:07:30]} Re8 {[%emt 0:03:30]} 14. Rad1 {[%emt 0:06:30]} Qc7 $146 {[%emt 0:29:30]} ({Predecessor:} 14... c5 15. Nd5 Bxd5 16. cxd5 Nf8 17. Bg5 f6 18. exf6 exf6 19. Rxe8 Qxe8 20. Bxf6 Qf7 21. Bxg7 Kxg7 22. b4 cxb4 23. Qxb4 Re8 24. Qd4+ Qf6 25. Qxa7 Qb2 26. Qd4+ {1-0 (26) Glek,I (2535)-Roch,T Le Touquet 1993}) 15. Bxg7 {[%emt 0:05:30]} Kxg7 {[%emt 0:00:30]} 16. Ne4 {[%emt 0:01:30]} ({Better is} 16. Rd3 $16) 16... c5 {[%emt 0:05:30]} 17. Nfg5 {[%emt 0:25:30]} Nxg5 {[%emt 0:02:30]} (17... h6 $1 $11 18. Nf3 Qa5) 18. Qxg5 {[%emt 0:04:30]} Bxe4 {[%emt 0:01:30]} 19. Rxe4 {[%emt 0:00:00]} h6 {[%emt 0:00:30]} 20. Qg3 {[%emt 0:02:00]} Qc6 {[%emt 0:01:30]} 21. Re2 {[%emt 0:00:30]} Rab8 {[%emt 0:02:30]} 22. b3 {[%emt 0:01:30]} a5 {[%emt 0:00:30]} 23. Qc3 {[%emt 0:00:30]} Kg8 {[%emt 0:03:46]} 24. Qxa5 {[%emt 0:00:30]} Ra8 {[%emt 0:00:43]} 25. Qd2 {[%emt 0:00:00]} Qe6 {[%emt 0:02:46]} 26. Qxh6 {[%emt 0:02:00]} d6 {[%emt 0:01:22]} 27. Re3 {[%emt 0:01:30]} dxe5 {[%emt 0:02:05]} 28. a4 {[%emt 0:00:30]} Qf6 {[%emt 0:04:15]} 29. Rde1 {[%emt 0:00:30]} Red8 {[%emt 0:00:51]} 30. Kf1 {[%emt 0:03:30]} e6 {[%emt 0:08:03]} 31. Rf3 {[%emt 0:00:30]} Qe7 {[%emt 0:01:07]} 32. Rh3 {[%emt 0:00:00]} Qf6 {[%emt 0:00:14]} 33. Qh7+ {[%emt 0:00:00]} Kf8 {[%emt 0:00:30]} 34. Qh8+ {[%emt 0:00:30]} Ke7 {[%emt 0:00:10]} 35. Qxf6+ {[%emt 0:00:00]} Kxf6 {[%emt 0:00:30]} 36. Rf3+ {[%emt 0:00:00]} Ke7 {[%emt 0:00:00]} 37. Rxe5 {[%emt 0:00:00]} Rd1+ {[%emt 0:00:00]} 38. Re1 {[%emt 0:00:00]} Rd2 {[%emt 0:00:00]} 39. g3 {[%emt 0:01:30]} Rb2 {[%emt 0:00:00]} 40. Re5 {[%emt 0:01:30]} Rc8 {[%emt 0:00:42]} 41. Rd3 {[%emt 0:00:30]} f6 {[%emt 0:01:11]} 42. Re2 {[%emt 0:00:30]} Rb1+ {[%emt 0:00:23]} 43. Kg2 {[%emt 0:00:30]} g5 {[%emt 0:00:21]} 44. Rde3 {[%emt 0:01:30]} Rc6 {[%emt 0:00:06]} 45. Rd3 {[%emt 0:01:30]} Rb6 {[%emt 0:00:44]} 46. Ree3 {[%emt 0:00:30]} g4 {[%emt 0:00:05]} 47. h3 {[%emt 0:00:30]} gxh3+ {[%emt 0:00:45]} 48. Kxh3 {[%emt 0:00:30]} Rb8 {[%emt 0:00:00]} 49. Kg2 {[%emt 0:00:30]} f5 {[%emt 0:00:11]} 50. Kf3 {[%emt 0:00:30]} Rb2 {[%emt 0:00:06]} 51. a5 {[%emt 0:07:30]} Ra8 {[%emt 0:03:25]} 52. Rd5 {[%emt 0:01:30]} Rxa5 {[%emt 0:00:30]} 53. Rde5 {[%emt 0:00:00]} Raa2 {[%emt 0:00:01]} 54. Rxe6+ {[%emt 0:00:00]} Kf7 {[%emt 0:00:01]} 55. Kf4 {[%emt 0:00:30]} Rxf2+ {[%emt 0:00:50]} 56. Kg5 {[%emt 0:00:30]} Ra7 {[%emt 0:00:37]} 57. R6e5 {[%emt 0:07:30]} Kg8 {[%emt 0:00:10]} 58. Re8+ {[%emt 0:01:47]} Kf7 {[%emt 0:00:01]} 59. Rc8 {[%emt 0:00:00]} Kg7 {[%emt 0:02:55]} 60. Rxc5 {[%emt 0:00:33]} Kg8 {[%emt 0:00:15]} 61. Rc8+ {[%emt 0:00:54]} Kh7 {[%emt 0:00:12]} 62. Rf8 {[%emt 0:03:34]} Rg7+ {[%emt 0:00:38]} 63. Kf6 {[%emt 0:00:04]} f4 {[%emt 0:00:00]} 64. gxf4 {[%emt 0:04:31]} Rxf4+ {[%emt 0:00:23]} 65. Ke6 {[%emt 0:00:00]} Rxf8 {[%emt 0:00:10]} 66. Kd6 {[%emt 0:00:00]} Rc8 {[%emt 0:00:00]} 67. Re7 {[%emt 0:00:29]} Rc6+ $2 {[%emt 0:03:01]} (67... Rxe7 $19 68. Kxe7 Kg8) 68. Kxc6 {[%emt 0:00:30]} Rxe7 {[%emt 0:00:00]} 69. b4 $11 {[%emt 0:00:44]} Re4 {[%emt 0:00:20]} 70. Kd5 {[%emt 0:00:00]} Re1 {[%emt 0:00:35]} 71. c5 {[%emt 0:00:23]} Kg7 {[%emt 0:00:07]} 72. b5 {[%emt 0:02:22]} Kf7 {[%emt 0:00:25]} 73. Kc6 {[%emt 0:02:47]} Ke7 {[%emt 0:00:58]} 74. b6 {[%emt 0:00:06]} Kd8 {[%emt 0:00:45]} 75. Kb7 {[%emt 0:00:04]} Rc1 {[%emt 0:00:12]} 76. c6 {[%emt 0:00:30]} Rc2 {[%emt 0:00:00]} 77. c7+ {[%emt 0:01:12]} Kd7 {[%emt 0:00:00]} 78. Ka7 {[%emt 0:00:15]} Rb2 {[%emt 0:00:50]} 79. Kb7 {[%emt 0:00:06]} Rc2 {[%emt 0:00:11]} 80. Ka7 {[%emt 0:00:00]} 1/2-1/2

[Event "Turkish Second League 2019"]
[Site "Konya"]
[Date "2019.07.23"]
[Round "2"]
[White "Yurtoglu, Osman Talha"]
[Black "Temizkan, Denizcan"]
[Result "1-0"]
[ECO "C47"]
[WhiteElo "1923"]
[BlackElo "2202"]
[Annotator "ChessBase"]
[PlyCount "83"]
[EventDate "2019.07.22"]
[EventType "team-tourn"]
[EventCountry "TUR"]
[SourceTitle "playchess.com"]
[Source "ChessBase"]
[SourceQuality "1"]
[TimeControl "5400+30"]

1. e4 {[%emt 0:00:30]} e5 {[%emt 0:00:30]} 2. Nf3 {[%emt 0:00:30]} Nc6 {[%emt 0:00:30]} 3. Nc3 {[%emt 0:00:30]} Nf6 {[%emt 0:00:30]} 4. Be2 {[%emt 0:00:00]} Bb4 {[%emt 0:06:30]} 5. Nd5 {[%emt 0:00:00]} Bc5 {[%emt 0:04:30]} 6. d3 {[%emt 0:00:30]} d6 {[%emt 0:01:30]} 7. Bg5 {[%emt 0:06:30]} Be6 {[%emt 0:00:00]} 8. c3 {[%emt 0:17:30]} Bxd5 {[%emt 0:16:00]} 9. exd5 {[%emt 0:01:30]} Ne7 {[%emt 0:00:30]} 10. b4 {[%emt 0:00:30]} Bb6 {[%emt 0:00:30]} 11. Bxf6 {[%emt 0:05:30]} gxf6 {[%emt 0:00:00]} 12. Qb3 {[%emt 0:00:30]} Rg8 {[%emt 0:04:00]} 13. Rg1 {[%emt 0:01:30]} a5 {[%emt 0:01:30]} 14. a4 {[%emt 0:17:30]} Ng6 {[%emt 0:06:30]} 15. g3 {[%emt 0:05:30]} f5 {[%emt 0:01:30]} 16. d4 {[%emt 0:11:30]} e4 {[%emt 0:08:30]} 17. Nd2 {[%emt 0:01:30]} axb4 {[%emt 0:03:30]} 18. Qxb4 {[%emt 0:07:30]} Nf4 {[%emt 0:00:30]} 19. Bb5+ {[%emt 0:00:30]} Kf8 {[%emt 0:00:00]} 20. Qb3 {[%emt 0:00:30]} c6 {[%emt 0:21:00]} 21. dxc6 {[%emt 0:05:46]} bxc6 {[%emt 0:00:00]} 22. Bxc6 {[%emt 0:00:53]} Rc8 {[%emt 0:02:00]} 23. Bb5 {[%emt 0:01:44]} Ba5 {[%emt 0:10:11]} 24. Rc1 {[%emt 0:00:51]} Qg5 {[%emt 0:04:38]} 25. Bf1 {[%emt 0:08:48]} Qh5 {[%emt 0:03:16]} 26. Qd1 {[%emt 0:03:14]} Qxh2 {[%emt 0:00:41]} 27. gxf4 {[%emt 0:00:53]} Rxg1 {[%emt 0:00:14]} 28. Qb3 {[%emt 0:00:40]} Qxf4 {[%emt 0:00:47]} 29. Qb7 {[%emt 0:00:05]} Rxc3 {[%emt 0:00:27]} 30. Rxc3 {[%emt 0:00:04]} Bxc3 {[%emt 0:00:50]} 31. Qc8+ {[%emt 0:00:30]} Kg7 {[%emt 0:00:30]} 32. Qxc3 {[%emt 0:00:00]} d5 {[%emt 0:00:25]} 33. a5 {[%emt 0:00:00]} Qd6 {[%emt 0:00:22]} 34. Qc5 {[%emt 0:01:31]} Qe6 {[%emt 0:01:15]} 35. Qb5 {[%emt 0:01:20]} e3 {[%emt 0:03:00]} 36. Nf3 {[%emt 0:00:01]} Rh1 {[%emt 0:00:16]} 37. Ne5 {[%emt 0:00:01]} exf2+ {[%emt 0:00:33]} 38. Kxf2 {[%emt 0:00:30]} Qh6 {[%emt 0:00:00]} 39. Nf3 {[%emt 0:00:26]} Qf4 {[%emt 0:00:00]} 40. Qxd5 {[%emt 0:00:16]} Rh2+ {[%emt 0:00:29]} 41. Bg2 {[%emt 0:00:08]} Qe4 {[%emt 0:01:32]} 42. Qxe4 {[%emt 0:00:08]} 1-0